[Event "HUN-chT Youth-Children 2018"]
[Site "Zalakaros"]
[Date "2018.07.29"]
[Round "7"]
[White "Kasnya, Peter"]
[Black "Varga, Marko"]
[Result "1-0"]
[ECO "C44"]
[WhiteElo "1320"]
[BlackElo "1048"]
[Annotator "NA"]
[PlyCount "107"]
[EventDate "2018.07.26"]
[EventType "team-tourn"]
[EventCountry "HUN"]
[SourceTitle "playchess.com"]
[Source "ChessBase"]
[SourceQuality "1"]
[TimeControl "5400+30"]

1. e4 {[%emt 0:00:00]} e5 {[%emt 0:00:10]} 2. Nf3 {[%emt 0:00:00]} Nc6 {[%emt 0:00:19]} 3. d4 {[%emt 0:00:34]} exd4 {[%emt 0:00:53]} 4. Nxd4 {[%emt 0:00:14]} Nf6 {[%emt 0:00:15]} 5. Nxc6 {[%emt 0:00:38]} bxc6 {[%emt 0:00:15]} 6. Bd3 {[%emt 0:00:53]} Be7 {[%emt 0:00:22]} 7. O-O {[%emt 0:00:46]} O-O {[%emt 0:00:17]} 8. Nc3 {[%emt 0:00:09]} Re8 {[%emt 0:00:24]} 9. Re1 {[%emt 0:00:30]} d5 {[%emt 0:04:07]} 10. b3 {[%emt 0:10:15]} dxe4 {[%emt 0:00:57]} 11. Nxe4 {[%emt 0:00:36]} Nxe4 {[%emt 0:00:31]} 12. Bxe4 {[%emt 0:00:11]} Bb7 {[%emt 0:00:12]} 13. Bb2 {[%emt 0:00:23]} Bd6 $18 {[%emt 0:04:27]} ({Günstiger ist} 13... Qxd1 $14 14. Raxd1 Bb4) 14. h3 {[%emt 0:04:27]} Qg5 {[%emt 0:01:38]} 15. Qf3 {[%emt 0:01:29]} Qf4 {[%emt 0:02:28]} 16. Qxf4 {[%emt 0:01:17]} Bxf4 {[%emt 0:00:10]} 17. Bf3 {[%emt 0:01:46]} h6 {[%emt 0:01:49]} 18. Rad1 {[%emt 0:00:13]} Rad8 {[%emt 0:01:19]} 19. Rxd8 {[%emt 0:00:24]} Rxd8 {[%emt 0:00:15]} 20. Rd1 {[%emt 0:00:09]} Rxd1+ {[%emt 0:00:27]} 21. Bxd1 {[%emt 0:00:18]} g5 {[%emt 0:01:51]} 22. Kf1 {[%emt 0:00:19]} f5 {[%emt 0:01:00]} 23. Ke2 {[%emt 0:00:24]} Ba6+ {[%emt 0:00:34]} 24. c4 {[%emt 0:00:17]} Kf7 {[%emt 0:00:32]} 25. Kd3 {[%emt 0:00:15]} Ke6 {[%emt 0:00:13]} 26. Bg7 {[%emt 0:00:16]} c5 {[%emt 0:02:14]} 27. Bxh6 {[%emt 0:00:33]} Bb7 {[%emt 0:01:10]} 28. g3 {[%emt 0:00:27]} Be4+ {[%emt 0:00:18]} 29. Ke2 {[%emt 0:01:12]} Bc1 {[%emt 0:00:37]} 30. h4 {[%emt 0:00:53]} Kf6 {[%emt 0:00:18]} 31. hxg5+ {[%emt 0:00:26]} Bxg5 {[%emt 0:00:18]} 32. Bf8 {[%emt 0:00:20]} a6 {[%emt 0:02:38]} 33. Bxc5 {[%emt 0:00:15]} f4 {[%emt 0:01:14]} 34. gxf4 {[%emt 0:01:08]} Bxf4 {[%emt 0:00:21]} 35. Be3 {[%emt 0:00:14]} Be5 {[%emt 0:00:37]} 36. Kd2 {[%emt 0:00:55]} Kf5 {[%emt 0:00:52]} 37. Bc2 {[%emt 0:00:13]} Bxc2 {[%emt 0:01:07]} 38. Kxc2 {[%emt 0:00:04]} Ke4 {[%emt 0:00:19]} 39. Kd2 {[%emt 0:00:33]} c6 {[%emt 0:00:35]} 40. a4 {[%emt 0:01:10]} Kf5 {[%emt 0:01:01]} 41. Kd3 {[%emt 0:00:25]} Ke6 {[%emt 0:00:22]} 42. Ke4 {[%emt 0:00:51]} Bb2 {[%emt 0:00:58]} 43. f4 {[%emt 0:00:22]} Kf6 {[%emt 0:00:21]} 44. Bd4+ {[%emt 0:03:05]} Bxd4 {[%emt 0:00:27]} 45. Kxd4 {[%emt 0:00:09]} Kf5 {[%emt 0:00:38]} 46. Kc5 {[%emt 0:00:30]} Kxf4 {[%emt 0:00:19]} 47. Kxc6 {[%emt 0:00:11]} Ke4 {[%emt 0:00:09]} 48. Kd6 {[%emt 0:00:18]} Kd4 {[%emt 0:00:26]} 49. c5 {[%emt 0:00:13]} Kc3 {[%emt 0:00:20]} 50. Kc6 {[%emt 0:00:40]} Kxb3 {[%emt 0:00:27]} 51. Kb6 {[%emt 0:00:13]} Kb4 {[%emt 0:00:26]} 52. c6 {[%emt 0:01:13]} Kxa4 {[%emt 0:01:26]} 53. Kxa6 {[%emt 0:00:17]} Kb4 {[%emt 0:00:22]} 54. c7 {[%emt 0:00:10]} 1-0

[Event "HUN-chT Youth-Children 2018"]
[Site "Zalakaros"]
[Date "2018.07.29"]
[Round "7"]
[White "Pasti, Zsombor"]
[Black "Petyko, Martin"]
[Result "1/2-1/2"]
[ECO "C01"]
[WhiteElo "1249"]
[BlackElo "1166"]
[Annotator "NA"]
[PlyCount "58"]
[EventDate "2018.07.26"]
[EventType "team-tourn"]
[EventCountry "HUN"]
[SourceTitle "playchess.com"]
[Source "ChessBase"]
[SourceQuality "1"]
[TimeControl "5400+30"]

1. e4 {[%emt 0:00:00]} e6 {[%emt 0:00:17]} 2. d4 {[%emt 0:00:00]} d5 {[%emt 0:00:15]} 3. exd5 {[%emt 0:00:00]} exd5 {[%emt 0:00:06]} 4. Nf3 {[%emt 0:00:00]} Nf6 {[%emt 0:00:29]} 5. Bg5 {[%emt 0:00:00]} Be7 {[%emt 0:00:28]} 6. c4 {[%emt 0:00:24]} O-O {[%emt 0:00:43]} 7. Nc3 {[%emt 0:00:11]} Re8 {[%emt 0:01:58]} 8. Be2 {[%emt 0:01:34]} Ne4 {[%emt 0:01:47]} 9. Bxe7 {[%emt 0:00:54]} Qxe7 {[%emt 0:02:46]} 10. Nxd5 {[%emt 0:02:22]} Qd6 {[%emt 0:02:18]} 11. O-O {[%emt 0:00:53]} Be6 {[%emt 0:02:45]} 12. Qb3 {[%emt 0:07:04]} Nc6 {[%emt 0:01:20]} 13. Rad1 {[%emt 0:05:14]} Na5 {[%emt 0:03:11]} 14. Qb4 {[%emt 0:02:11]} Qxb4 {[%emt 0:02:17]} 15. Nxb4 {[%emt 0:00:18]} Bxc4 {[%emt 0:01:47]} 16. Bxc4 {[%emt 0:00:31]} Nxc4 {[%emt 0:00:18]} 17. Rc1 {[%emt 0:01:58]} Nxb2 {[%emt 0:04:17]} 18. Rxc7 {[%emt 0:00:23]} a5 {[%emt 0:02:47]} 19. Nd5 {[%emt 0:02:12]} b5 {[%emt 0:07:56]} 20. Rc2 {[%emt 0:01:11]} Nd3 {[%emt 0:02:25]} 21. Rb1 {[%emt 0:04:56]} b4 {[%emt 0:05:04]} 22. Ne1 {[%emt 0:06:30]} Nxe1 {[%emt 0:02:13]} 23. Rxe1 {[%emt 0:01:31]} Nc3 {[%emt 0:02:04]} 24. Ne3 {[%emt 0:01:19]} Nb5 {[%emt 0:02:24]} 25. d5 {[%emt 0:02:57]} Rac8 {[%emt 0:01:19]} 26. Rxc8 {[%emt 0:02:13]} Rxc8 {[%emt 0:00:07]} 27. Nc4 {[%emt 0:01:12]} a4 {[%emt 0:01:26]} 28. d6 {[%emt 0:00:30]} Kf8 {[%emt 0:01:53]} 29. Nb6 Rd8 1/2-1/2

[Event "HUN-chT Youth-Children 2018"]
[Site "Zalakaros"]
[Date "2018.07.29"]
[Round "7"]
[White "Vilics, Hanna"]
[Black "Kocsmar, Akos"]
[Result "0-1"]
[ECO "A49"]
[WhiteElo "1205"]
[BlackElo "1721"]
[Annotator "NA"]
[PlyCount "104"]
[EventDate "2018.07.26"]
[EventType "team-tourn"]
[EventCountry "HUN"]
[SourceTitle "playchess.com"]
[Source "ChessBase"]
[SourceQuality "1"]
[TimeControl "5400+30"]

1. d4 {[%emt 0:00:00]} Nf6 {[%emt 0:00:20]} 2. Nf3 {[%emt 0:00:00]} g6 {[%emt 0:00:09]} 3. g3 {[%emt 0:00:11]} Bg7 {[%emt 0:00:39]} 4. Bg2 {[%emt 0:00:12]} d6 {[%emt 0:01:01]} 5. O-O {[%emt 0:00:21]} O-O {[%emt 0:00:18]} 6. Nbd2 {[%emt 0:00:29]} Nbd7 {[%emt 0:00:22]} 7. b3 {[%emt 0:00:20]} c5 {[%emt 0:00:25]} 8. Bb2 {[%emt 0:00:26]} Rb8 {[%emt 0:00:33]} 9. c4 {[%emt 0:00:28]} cxd4 {[%emt 0:00:47]} 10. Nxd4 {[%emt 0:00:11]} a6 {[%emt 0:00:51]} 11. Rc1 {[%emt 0:00:59]} Qb6 {[%emt 0:00:33]} 12. N4f3 {[%emt 0:00:42]} Ng4 {[%emt 0:01:28]} 13. Bxg7 {[%emt 0:01:04]} Kxg7 {[%emt 0:00:02]} 14. Ne4 {[%emt 0:00:48]} Ngf6 {[%emt 0:01:13]} 15. Nxf6 {[%emt 0:00:45]} Nxf6 {[%emt 0:00:06]} 16. Qd4 {[%emt 0:01:07]} Qxd4 {[%emt 0:00:24]} 17. Nxd4 {[%emt 0:00:08]} Bd7 {[%emt 0:00:02]} 18. c5 {[%emt 0:01:06]} e5 {[%emt 0:03:42]} 19. Nf3 {[%emt 0:00:30]} e4 {[%emt 0:00:08]} 20. Ng5 {[%emt 0:00:52]} d5 {[%emt 0:00:10]} 21. Nh3 {[%emt 0:01:06]} Bc6 {[%emt 0:01:04]} 22. e3 {[%emt 0:01:13]} Nd7 {[%emt 0:00:25]} 23. f3 {[%emt 0:00:56]} Rbe8 {[%emt 0:00:55]} 24. fxe4 {[%emt 0:01:18]} dxe4 {[%emt 0:00:55]} 25. Rf4 {[%emt 0:02:12]} f5 {[%emt 0:00:37]} 26. g4 {[%emt 0:01:16]} Ne5 {[%emt 0:00:38]} 27. Nf2 {[%emt 0:02:44]} fxg4 {[%emt 0:10:50]} 28. Rxf8 {[%emt 0:00:46]} Kxf8 {[%emt 0:01:02]} 29. Rf1 {[%emt 0:01:28]} Nf3+ {[%emt 0:01:02]} 30. Bxf3 {[%emt 0:00:22]} gxf3 {[%emt 0:00:06]} 31. Rd1 {[%emt 0:00:29]} Re5 {[%emt 0:01:15]} 32. b4 {[%emt 0:00:58]} Ke7 {[%emt 0:00:19]} 33. Rd4 {[%emt 0:00:34]} h5 {[%emt 0:01:20]} 34. h3 {[%emt 0:01:08]} Bd5 {[%emt 0:02:07]} 35. a3 {[%emt 0:00:28]} Ke6 {[%emt 0:01:17]} 36. Kh2 {[%emt 0:00:26]} Rg5 {[%emt 0:03:37]} 37. Kh1 {[%emt 0:01:24]} Rg2 {[%emt 0:00:40]} 38. Rd2 {[%emt 0:02:25]} g5 {[%emt 0:00:25]} 39. Rb2 {[%emt 0:00:34]} g4 {[%emt 0:01:19]} 40. hxg4 {[%emt 0:00:44]} hxg4 {[%emt 0:00:02]} 41. Nd1 {[%emt 0:00:25]} Rxb2 {[%emt 0:00:49]} 42. Nxb2 {[%emt 0:00:03]} g3 {[%emt 0:00:13]} 43. Kg1 {[%emt 0:00:44]} Kf5 {[%emt 0:00:29]} 44. Nd1 {[%emt 0:00:43]} f2+ {[%emt 0:00:29]} 45. Nxf2 {[%emt 0:00:33]} gxf2+ {[%emt 0:00:05]} 46. Kxf2 {[%emt 0:00:05]} Kg4 {[%emt 0:00:04]} 47. Ke2 {[%emt 0:00:10]} Kg3 {[%emt 0:00:07]} 48. Ke1 {[%emt 0:00:23]} Kf3 {[%emt 0:00:10]} 49. Kd2 {[%emt 0:00:08]} Kf2 {[%emt 0:00:04]} 50. Kd1 {[%emt 0:00:11]} Kxe3 {[%emt 0:00:05]} 51. Ke1 {[%emt 0:00:05]} Bb3 {[%emt 0:00:09]} 52. Kf1 {[%emt 0:00:09]} Kd2 {[%emt 0:00:05]} 0-1

[Event "HUN-chT Youth-Children 2018"]
[Site "Zalakaros"]
[Date "2018.07.29"]
[Round "7"]
[White "Horvath, Sebestyen"]
[Black "Koteljarto, Aron"]
[Result "1/2-1/2"]
[ECO "B18"]
[WhiteElo "1040"]
[BlackElo "1404"]
[Annotator "NA"]
[PlyCount "32"]
[EventDate "2018.07.26"]
[EventType "team-tourn"]
[EventCountry "HUN"]
[SourceTitle "playchess.com"]
[Source "ChessBase"]
[SourceQuality "1"]
[TimeControl "5400+30"]

1. e4 {[%emt 0:00:00]} c6 {[%emt 0:00:06]} 2. d4 {[%emt 0:01:13]} d5 {[%emt 0:00:07]} 3. Nc3 {[%emt 0:01:08]} dxe4 {[%emt 0:01:16]} 4. Nxe4 {[%emt 0:01:13]} Bf5 {[%emt 0:00:21]} 5. Ng3 {[%emt 0:01:12]} Bg6 {[%emt 0:00:06]} 6. Nf3 {[%emt 0:01:33]} Nd7 {[%emt 0:00:08]} 7. Bd3 {[%emt 0:02:07]} Bxd3 {[%emt 0:00:08]} 8. Qxd3 {[%emt 0:00:56]} e6 {[%emt 0:00:07]} 9. Bd2 {[%emt 0:01:46]} Ngf6 {[%emt 0:00:10]} 10. O-O-O {[%emt 0:01:57]} Be7 {[%emt 0:00:05]} 11. Kb1 {[%emt 0:01:12]} h6 {[%emt 0:00:13]} 12. c4 {[%emt 0:01:57]} Qc7 {[%emt 0:04:54]} 13. Rhe1 {[%emt 0:04:50]} O-O-O {[%emt 0:00:41]} 14. Qb3 {[%emt 0:04:39]} Kb8 {[%emt 0:05:25]} 15. c5 {[%emt 0:06:40]} Nd5 {[%emt 0:00:45]} 16. Rc1 {[%emt 0:05:37]} Ka8 1/2-1/2